[Event "*** Titled Tuesday Blitz"]
[Site "Chess.com"]
[Date "2021.02.02"]
[Round "1"]
[White "dolynachess"]
[Black "KuzubovYuriy"]
[Result "0-1"]
[WhiteElo "2434"]
[BlackElo "2841"]
[TimeControl "180+1"]
[EndTime "10:08:16 PST"]
[Termination "KuzubovYuriy won by checkmate"]

1. d4 {[%clk 0:02:59.5]} 1... Nf6 {[%clk 0:02:56.4]} 2. c4 {[%clk 0:02:59.6]}
2... e6 {[%clk 0:02:56.5]} 3. g3 {[%clk 0:02:58.6]} 3... d5 {[%clk 0:02:53]} 4.
Bg2 {[%clk 0:02:58.1]} 4... Bb4+ {[%clk 0:02:53.6]} 5. Nd2 {[%clk 0:02:58.2]}
5... O-O {[%clk 0:02:51.5]} 6. Nf3 {[%clk 0:02:54.7]} 6... b6 {[%clk 0:02:48.9]}
7. O-O {[%clk 0:02:53.1]} 7... Bb7 {[%clk 0:02:48.6]} 8. Qa4 {[%clk 0:02:51.4]}
8... Bd6 {[%clk 0:02:40.2]} 9. Rd1 {[%clk 0:02:50.6]} 9... Nbd7 {[%clk
0:02:22.8]} 10. Qc2 {[%clk 0:02:41.7]} 10... Rc8 {[%clk 0:02:20.6]} 11. cxd5
{[%clk 0:02:39.6]} 11... exd5 {[%clk 0:02:18.4]} 12. b3 {[%clk 0:02:39.1]} 12...
Qe7 {[%clk 0:02:16.1]} 13. Bb2 {[%clk 0:02:38.3]} 13... Qxe2 {[%clk 0:01:55.2]}
14. Re1 {[%clk 0:02:37.7]} 14... Qa6 {[%clk 0:01:37.6]} 15. Bf1 {[%clk
0:02:35.4]} 15... Qa5 {[%clk 0:01:35.1]} 16. a3 {[%clk 0:02:14]} 16... c5 {[%clk
0:01:27]} 17. Qd3 {[%clk 0:01:57.5]} 17... c4 {[%clk 0:01:23.8]} 18. bxc4 {[%clk
0:01:12.9]} 18... dxc4 {[%clk 0:01:23.6]} 19. Nxc4 {[%clk 0:01:13.2]} 19... Rxc4
{[%clk 0:01:16.6]} 20. Qxc4 {[%clk 0:01:07]} 20... Bxf3 {[%clk 0:01:15.8]} 21.
d5 {[%clk 0:00:57.8]} 21... Qd2 {[%clk 0:01:05.4]} 22. Qd4 {[%clk 0:00:39]}
22... Qxd4 {[%clk 0:00:58.2]} 23. Bxd4 {[%clk 0:00:39.9]} 23... Rc8 {[%clk
0:00:56.3]} 24. Rac1 {[%clk 0:00:36.6]} 24... Rxc1 {[%clk 0:00:54.6]} 25. Rxc1
{[%clk 0:00:37.5]} 25... Nc5 {[%clk 0:00:54.5]} 26. Bg2 {[%clk 0:00:31]} 26...
Bxg2 {[%clk 0:00:52.1]} 27. Kxg2 {[%clk 0:00:31.9]} 27... Nfd7 {[%clk
0:00:45.6]} 28. Rc4 {[%clk 0:00:27.1]} 28... f5 {[%clk 0:00:43]} 29. a4 {[%clk
0:00:25.5]} 29... Kf7 {[%clk 0:00:42]} 30. f4 {[%clk 0:00:24.9]} 30... g6 {[%clk
0:00:39.2]} 31. Kf3 {[%clk 0:00:20.4]} 31... Nf6 {[%clk 0:00:38.8]} 32. a5
{[%clk 0:00:15.4]} 32... Nxd5 {[%clk 0:00:37.7]} 33. axb6 {[%clk 0:00:15]} 33...
axb6 {[%clk 0:00:38]} 34. h3 {[%clk 0:00:13.5]} 34... Ke6 {[%clk 0:00:36.1]} 35.
g4 {[%clk 0:00:13.6]} 35... Nb3 {[%clk 0:00:26.2]} 36. Bc3 {[%clk 0:00:09.6]}
36... b5 {[%clk 0:00:21.9]} 37. Rc8 {[%clk 0:00:08.2]} 37... Kd7 {[%clk
0:00:20.5]} 38. Rh8 {[%clk 0:00:08]} 38... Nxc3 {[%clk 0:00:20.3]} 39. Rxh7+
{[%clk 0:00:08.9]} 39... Ke6 {[%clk 0:00:20.4]} 40. Rh6 {[%clk 0:00:09.3]} 40...
Kf6 {[%clk 0:00:19.4]} 41. h4 {[%clk 0:00:08.2]} 41... fxg4+ {[%clk 0:00:19]}
42. Kxg4 {[%clk 0:00:09.1]} 42... Nd5 {[%clk 0:00:18.4]} 43. h5 {[%clk
0:00:09.1]} 43... Nxf4 {[%clk 0:00:18.2]} 44. hxg6 {[%clk 0:00:09.6]} 44... Nxg6
{[%clk 0:00:18.4]} 45. Rh3 {[%clk 0:00:09.3]} 45... Nd4 {[%clk 0:00:17.9]} 46.
Rh7 {[%clk 0:00:08.1]} 46... Ke6 {[%clk 0:00:14.3]} 47. Rb7 {[%clk 0:00:09]}
47... Ne5+ {[%clk 0:00:13.7]} 48. Kg3 {[%clk 0:00:08.5]} 48... Kd5 {[%clk
0:00:13.7]} 49. Rxb5+ {[%clk 0:00:08.2]} 49... Nxb5 {[%clk 0:00:13.4]} 50. Kg2
{[%clk 0:00:09.1]} 50... Ke4 {[%clk 0:00:13.3]} 51. Kf2 {[%clk 0:00:10]} 51...
Nd4 {[%clk 0:00:13.6]} 52. Kg3 {[%clk 0:00:09.5]} 52... Be7 {[%clk 0:00:13.8]}
53. Kg2 {[%clk 0:00:09.3]} 53... Kf4 {[%clk 0:00:13.7]} 54. Kf2 {[%clk
0:00:10.2]} 54... Bh4+ {[%clk 0:00:13.7]} 55. Kf1 {[%clk 0:00:10.2]} 55... Kf3
{[%clk 0:00:13.6]} 56. Kg1 {[%clk 0:00:10.3]} 56... Bg3 {[%clk 0:00:13.8]} 57.
Kf1 {[%clk 0:00:10.8]} 57... Ng4 {[%clk 0:00:14.1]} 58. Kg1 {[%clk 0:00:11.7]}
58... Nb3 {[%clk 0:00:13.9]} 59. Kf1 {[%clk 0:00:11.3]} 59... Nd2+ {[%clk
0:00:13.5]} 60. Kg1 {[%clk 0:00:12.2]} 60... Bf4 {[%clk 0:00:13.2]} 61. Kh1
{[%clk 0:00:12.3]} 61... Kg3 {[%clk 0:00:12.7]} 62. Kg1 {[%clk 0:00:13.2]} 62...
Kh3 {[%clk 0:00:12]} 63. Kh1 {[%clk 0:00:13.2]} 63... Bg3 {[%clk 0:00:11.4]} 64.
Kg1 {[%clk 0:00:14.1]} 64... Bh2+ {[%clk 0:00:11]} 65. Kh1 {[%clk 0:00:15]}
65... Nf2# {[%clk 0:00:11.4]} 0-1

[Event "*** Titled Tuesday Blitz"]
[Site "Chess.com"]
[Date "2021.02.02"]
[Round "1"]
[White "juancruzarias"]
[Black "Darius321"]
[Result "1-0"]
[WhiteElo "2581"]
[BlackElo "2275"]
[TimeControl "180+1"]
[EndTime "10:08:17 PST"]
[Termination "juancruzarias won on time"]

1. d4 {[%clk 0:03:00.8]} 1... d5 {[%clk 0:02:56.6]} 2. Nf3 {[%clk 0:03:01.3]}
2... e6 {[%clk 0:02:56]} 3. e3 {[%clk 0:03:01]} 3... c5 {[%clk 0:02:56.2]} 4. c3
{[%clk 0:03:00.9]} 4... Nc6 {[%clk 0:02:55.6]} 5. Nbd2 {[%clk 0:03:00.5]} 5...
Nf6 {[%clk 0:02:55.6]} 6. Bd3 {[%clk 0:03:00.6]} 6... Bd6 {[%clk 0:02:55.5]} 7.
O-O {[%clk 0:03:00.8]} 7... O-O {[%clk 0:02:54.9]} 8. Qe2 {[%clk 0:03:01.2]}
8... e5 {[%clk 0:02:54.9]} 9. dxc5 {[%clk 0:03:00.6]} 9... Bxc5 {[%clk
0:02:53.8]} 10. e4 {[%clk 0:03:01.2]} 10... Qc7 {[%clk 0:02:47.5]} 11. exd5
{[%clk 0:02:52.8]} 11... Nxd5 {[%clk 0:02:46.5]} 12. Bxh7+ {[%clk 0:02:34.7]}
12... Kxh7 {[%clk 0:02:46.1]} 13. Qe4+ {[%clk 0:02:35.3]} 13... Kg8 {[%clk
0:02:35.9]} 14. Qxd5 {[%clk 0:02:35.2]} 14... Bb6 {[%clk 0:02:33]} 15. Ne4
{[%clk 0:02:12.3]} 15... Bg4 {[%clk 0:02:23.5]} 16. Bg5 {[%clk 0:01:56.9]} 16...
Bxf3 {[%clk 0:02:17.6]} 17. gxf3 {[%clk 0:01:55.7]} 17... Ne7 {[%clk 0:02:09.2]}
18. Qd6 {[%clk 0:01:44.4]} 18... Nf5 {[%clk 0:02:08.5]} 19. Qxc7 {[%clk
0:01:39.7]} 19... Bxc7 {[%clk 0:02:09.4]} 20. Rfd1 {[%clk 0:01:36.5]} 20... f6
{[%clk 0:02:06.7]} 21. Be3 {[%clk 0:01:28.1]} 21... Rfd8 {[%clk 0:01:59.1]} 22.
Kf1 {[%clk 0:01:24.6]} 22... Kf7 {[%clk 0:01:53.1]} 23. Ke2 {[%clk 0:01:22.5]}
23... Bb6 {[%clk 0:01:35.3]} 24. Ng3 {[%clk 0:01:16.4]} 24... Nd6 {[%clk
0:01:17.1]} 25. b3 {[%clk 0:01:08.6]} 25... Nb5 {[%clk 0:01:02.5]} 26. Rxd8
{[%clk 0:01:01.7]} 26... Rxd8 {[%clk 0:00:58.3]} 27. Rc1 {[%clk 0:01:00.6]}
27... Rh8 {[%clk 0:00:43.7]} 28. a4 {[%clk 0:00:57.3]} 28... Bxe3 {[%clk
0:00:33.7]} 29. Kxe3 {[%clk 0:00:56]} 29... Nd6 {[%clk 0:00:33.2]} 30. Rd1
{[%clk 0:00:52]} 30... Ke6 {[%clk 0:00:33]} 31. h4 {[%clk 0:00:52.4]} 31... g6
{[%clk 0:00:29.7]} 32. Rh1 {[%clk 0:00:50.3]} 32... a5 {[%clk 0:00:26.2]} 33. f4
{[%clk 0:00:47.4]} 33... exf4+ {[%clk 0:00:23.2]} 34. Kxf4 {[%clk 0:00:48.3]}
34... g5+ {[%clk 0:00:23.6]} 35. Kg4 {[%clk 0:00:46.1]} 35... gxh4 {[%clk
0:00:20.3]} 36. Rxh4 {[%clk 0:00:44.8]} 36... f5+ {[%clk 0:00:20.3]} 37. Kh3
{[%clk 0:00:32.7]} 37... Rxh4+ {[%clk 0:00:19.9]} 38. Kxh4 {[%clk 0:00:33.6]}
38... b5 {[%clk 0:00:20.2]} 39. axb5 {[%clk 0:00:30.2]} 39... Nxb5 {[%clk
0:00:20.1]} 40. Ne2 {[%clk 0:00:31.1]} 40... Ke5 {[%clk 0:00:18.3]} 41. Kg5
{[%clk 0:00:29.6]} 41... Ke4 {[%clk 0:00:17.9]} 42. c4 {[%clk 0:00:19.8]} 42...
Nc7 {[%clk 0:00:14]} 43. Ng3+ {[%clk 0:00:19.4]} 43... Kf3 {[%clk 0:00:13.3]}
44. Nxf5 {[%clk 0:00:18.2]} 44... Kxf2 {[%clk 0:00:13.2]} 45. Kf4 {[%clk
0:00:18.9]} 45... Ke2 {[%clk 0:00:13.1]} 46. Ke4 {[%clk 0:00:19]} 46... Kd2
{[%clk 0:00:12.6]} 47. Nd4 {[%clk 0:00:17]} 47... Kc3 {[%clk 0:00:11.7]} 48. c5
{[%clk 0:00:16.5]} 48... Kb4 {[%clk 0:00:10]} 49. c6 {[%clk 0:00:16.6]} 49...
Kc5 {[%clk 0:00:09.6]} 50. Ke5 {[%clk 0:00:13.5]} 50... Na6 {[%clk 0:00:05.8]}
51. Ke4 {[%clk 0:00:12.9]} 51... Kb6 {[%clk 0:00:05.2]} 52. Kd5 {[%clk
0:00:12.3]} 52... Kc7 {[%clk 0:00:04.7]} 53. Ne6+ {[%clk 0:00:11.7]} 53... Kb6
{[%clk 0:00:03.4]} 54. Nd4 {[%clk 0:00:12.2]} 54... Kc7 {[%clk 0:00:03.3]} 55.
Kc4 {[%clk 0:00:09]} 55... Nb4 {[%clk 0:00:02.2]} 56. Kb5 {[%clk 0:00:09.4]} 1-0

[Event "*** Titled Tuesday Blitz"]
[Site "Chess.com"]
[Date "2021.02.02"]
[Round "1"]
[White "serhanberat_ozdemir"]
[Black "Raja3401"]
[Result "1-0"]
[WhiteElo "2420"]
[BlackElo "2759"]
[TimeControl "180+1"]
[EndTime "10:08:21 PST"]
[Termination "serhanberat_ozdemir won by resignation"]

1. e4 {[%clk 0:02:59.6]} 1... c5 {[%clk 0:02:59.6]} 2. Nf3 {[%clk 0:02:59.8]}
2... d6 {[%clk 0:03:00.2]} 3. d4 {[%clk 0:03:00.2]} 3... cxd4 {[%clk 0:03:01.1]}
4. Nxd4 {[%clk 0:03:01.1]} 4... Nf6 {[%clk 0:03:01.6]} 5. Nc3 {[%clk 0:03:01.8]}
5... a6 {[%clk 0:03:02]} 6. f3 {[%clk 0:03:02.3]} 6... e5 {[%clk 0:03:02.3]} 7.
Nb3 {[%clk 0:03:02.8]} 7... Be6 {[%clk 0:03:03]} 8. Be3 {[%clk 0:03:03.2]} 8...
Be7 {[%clk 0:03:03.7]} 9. Qd2 {[%clk 0:03:03.5]} 9... Nbd7 {[%clk 0:03:04.4]}
10. O-O-O {[%clk 0:02:57.5]} 10... h5 {[%clk 0:03:00.4]} 11. Kb1 {[%clk
0:02:40.5]} 11... Rc8 {[%clk 0:02:55.3]} 12. Qf2 {[%clk 0:02:23.3]} 12... Rxc3
{[%clk 0:02:48.6]} 13. bxc3 {[%clk 0:02:24.2]} 13... Qc7 {[%clk 0:02:47.5]} 14.
c4 {[%clk 0:01:26.4]} 14... O-O {[%clk 0:02:39.1]} 15. h4 {[%clk 0:01:15.9]}
15... Bxc4 {[%clk 0:02:29.1]} 16. Bxc4 {[%clk 0:01:13.9]} 16... Qxc4 {[%clk
0:02:30]} 17. Qf1 {[%clk 0:01:10.3]} 17... Qc6 {[%clk 0:02:26.5]} 18. Qd3 {[%clk
0:01:10.8]} 18... Rc8 {[%clk 0:02:22.3]} 19. c4 {[%clk 0:01:08.3]} 19... Qa4
{[%clk 0:01:55.2]} 20. Rc1 {[%clk 0:01:06.3]} 20... a5 {[%clk 0:01:48.8]} 21.
Rhd1 {[%clk 0:01:02.7]} 21... b6 {[%clk 0:01:46.9]} 22. Na1 {[%clk 0:00:47.3]}
22... Nb8 {[%clk 0:01:37.4]} 23. Bg5 {[%clk 0:00:45]} 23... Na6 {[%clk
0:01:35.3]} 24. Qb3 {[%clk 0:00:41.4]} 24... Qc6 {[%clk 0:01:33.3]} 25. Nc2
{[%clk 0:00:41.8]} 25... Nc5 {[%clk 0:01:25.3]} 26. Qb5 {[%clk 0:00:42]} 26...
Qa8 {[%clk 0:01:18.4]} 27. Ne3 {[%clk 0:00:40]} 27... Ne6 {[%clk 0:01:16.9]} 28.
Nf5 {[%clk 0:00:38.5]} 28... Bf8 {[%clk 0:01:13]} 29. Bxf6 {[%clk 0:00:37.1]}
29... gxf6 {[%clk 0:01:13.9]} 30. Ka1 {[%clk 0:00:35.2]} 30... a4 {[%clk
0:01:10.7]} 31. Qd5 {[%clk 0:00:32.7]} 31... Qa6 {[%clk 0:01:06.9]} 32. Rg1
{[%clk 0:00:30.1]} 32... Rc5 {[%clk 0:01:02.7]} 33. Qd2 {[%clk 0:00:30.7]} 33...
Rxc4 {[%clk 0:00:55.8]} 34. g4 {[%clk 0:00:30.6]} 34... Rxc1+ {[%clk 0:00:55.7]}
35. Qxc1 {[%clk 0:00:30.6]} 35... Qe2 {[%clk 0:00:49.8]} 36. Qe3 {[%clk
0:00:26.9]} 36... Qh2 {[%clk 0:00:36.2]} 37. gxh5+ {[%clk 0:00:25.4]} 37... Kh7
{[%clk 0:00:35.5]} 38. Rc1 {[%clk 0:00:24.6]} 38... Nc5 {[%clk 0:00:17.5]} 39.
Qc3 {[%clk 0:00:22]} 39... Qe2 {[%clk 0:00:11.5]} 40. Qc4 {[%clk 0:00:18.7]}
40... Qxc4 {[%clk 0:00:06]} 41. Rxc4 {[%clk 0:00:19.6]} 41... Nd3 {[%clk
0:00:01.6]} 42. Rc8 {[%clk 0:00:16.8]} 42... Bg7 {[%clk 0:00:01.4]} 43. Rc7
{[%clk 0:00:14.4]} 43... Kg8 {[%clk 0:00:02.3]} 44. h6 {[%clk 0:00:14.2]} 44...
Bf8 {[%clk 0:00:01.8]} 45. Rc8 {[%clk 0:00:14.8]} 45... Nf4 {[%clk 0:00:01.4]}
46. h7+ {[%clk 0:00:15.3]} 46... Kxh7 {[%clk 0:00:02.1]} 47. Rxf8 {[%clk
0:00:15.8]} 47... d5 {[%clk 0:00:02.7]} 48. Rxf7+ {[%clk 0:00:16.1]} 48... Kg6
{[%clk 0:00:03.2]} 49. Rg7+ {[%clk 0:00:15.2]} 49... Kh5 {[%clk 0:00:03.9]} 50.
exd5 {[%clk 0:00:15.9]} 50... Nxd5 {[%clk 0:00:04.8]} 51. Kb2 {[%clk 0:00:13.8]}
51... b5 {[%clk 0:00:05.1]} 52. a3 {[%clk 0:00:13.6]} 52... Nf4 {[%clk
0:00:04.6]} 53. Rb7 {[%clk 0:00:13.1]} 53... Nd3+ {[%clk 0:00:04]} 54. Kc3
{[%clk 0:00:12.6]} 54... Ne1 {[%clk 0:00:04.4]} 55. Rxb5 {[%clk 0:00:10]} 55...
Nxf3 {[%clk 0:00:05.3]} 56. Rb4 {[%clk 0:00:10.3]} 56... Ng1 {[%clk 0:00:03.8]}
57. Ng3+ {[%clk 0:00:09.4]} 57... Kg6 {[%clk 0:00:03.2]} 58. Rxa4 {[%clk
0:00:09.6]} 58... Nf3 {[%clk 0:00:02.4]} 59. Rb4 {[%clk 0:00:08.7]} 59... Nd4
{[%clk 0:00:02.1]} 60. Rxd4 {[%clk 0:00:06.1]} 60... exd4+ {[%clk 0:00:03]} 61.
Kxd4 {[%clk 0:00:07]} 1-0

[Event "*** Titled Tuesday Blitz"]
[Site "Chess.com"]
[Date "2021.02.02"]
[Round "1"]
[White "Forantes"]
[Black "LawrenceTrent"]
[Result "0-1"]
[WhiteElo "2260"]
[BlackElo "2573"]
[TimeControl "180+1"]
[EndTime "10:08:23 PST"]
[Termination "LawrenceTrent won by resignation"]

1. Nf3 {[%clk 0:02:56.5]} 1... g6 {[%clk 0:02:52.8]} 2. g3 {[%clk 0:02:51]} 2...
Bg7 {[%clk 0:02:53.7]} 3. Bg2 {[%clk 0:02:43.7]} 3... Nf6 {[%clk 0:02:54.6]} 4.
O-O {[%clk 0:02:43.1]} 4... O-O {[%clk 0:02:55.5]} 5. b3 {[%clk 0:02:43.4]} 5...
d6 {[%clk 0:02:56.4]} 6. d4 {[%clk 0:02:43]} 6... e5 {[%clk 0:02:56.4]} 7. dxe5
{[%clk 0:02:42.8]} 7... Ng4 {[%clk 0:02:57]} 8. Bb2 {[%clk 0:02:43.1]} 8... Nc6
{[%clk 0:02:57.5]} 9. c4 {[%clk 0:02:37.2]} 9... Ngxe5 {[%clk 0:02:57.4]} 10.
Nc3 {[%clk 0:02:32.3]} 10... Bg4 {[%clk 0:02:55.9]} 11. Nxe5 {[%clk 0:02:28.1]}
11... Bxe5 {[%clk 0:02:54.8]} 12. Qd2 {[%clk 0:02:25]} 12... Qd7 {[%clk
0:02:51.3]} 13. Rfd1 {[%clk 0:02:17.2]} 13... Rae8 {[%clk 0:02:46.9]} 14. Ne4
{[%clk 0:01:51.8]} 14... Qe7 {[%clk 0:02:31.3]} 15. h3 {[%clk 0:01:36.6]} 15...
Bc8 {[%clk 0:02:10.3]} 16. Bxe5 {[%clk 0:01:30.6]} 16... Qxe5 {[%clk 0:01:57.4]}
17. Qc3 {[%clk 0:01:13.7]} 17... f5 {[%clk 0:01:47.6]} 18. Qxe5 {[%clk
0:01:11.2]} 18... Rxe5 {[%clk 0:01:46.4]} 19. Nc3 {[%clk 0:01:11]} 19... f4
{[%clk 0:01:45.7]} 20. Bd5+ {[%clk 0:00:36.5]} 20... Kg7 {[%clk 0:01:44.6]} 21.
g4 {[%clk 0:00:28.1]} 21... h5 {[%clk 0:01:30.5]} 22. f3 {[%clk 0:00:27.7]}
22... hxg4 {[%clk 0:01:29.8]} 23. hxg4 {[%clk 0:00:28.6]} 23... Ne7 {[%clk
0:01:22.7]} 24. Kf2 {[%clk 0:00:25.6]} 24... Re8 {[%clk 0:01:17.2]} 25. Be4
{[%clk 0:00:22.6]} 25... Ng8 {[%clk 0:01:16.8]} 26. Nb5 {[%clk 0:00:20.1]} 26...
Nf6 {[%clk 0:01:16]} 27. Bd3 {[%clk 0:00:16.5]} 27... R8e7 {[%clk 0:01:15]} 28.
Nxa7 {[%clk 0:00:14.2]} 28... Bd7 {[%clk 0:01:13.7]} 29. Nb5 {[%clk 0:00:14.6]}
29... Bxb5 {[%clk 0:01:04.4]} 30. cxb5 {[%clk 0:00:15.5]} 30... Nd5 {[%clk
0:01:04.3]} 31. Rac1 {[%clk 0:00:13.5]} 31... Nb4 {[%clk 0:01:00]} 32. Be4
{[%clk 0:00:12.5]} 32... d5 {[%clk 0:00:59.7]} 33. Bb1 {[%clk 0:00:12.3]} 33...
Rxe2+ {[%clk 0:00:59.4]} 34. Kf1 {[%clk 0:00:12.3]} 34... Nxa2 {[%clk
0:00:58.4]} 35. Bxa2 {[%clk 0:00:11.5]} 35... Rxa2 {[%clk 0:00:59.1]} 36. Rxd5
{[%clk 0:00:12.2]} 36... Rb2 {[%clk 0:00:48.1]} 37. Rdc5 {[%clk 0:00:11.6]}
37... Rxb3 {[%clk 0:00:42.5]} 38. Rxc7 {[%clk 0:00:11.5]} 38... Rxf3+ {[%clk
0:00:43.2]} 39. Kg2 {[%clk 0:00:09.7]} 39... Rg3+ {[%clk 0:00:43.8]} 40. Kf2
{[%clk 0:00:09.9]} 40... Rxc7 {[%clk 0:00:41.6]} 41. Rxc7+ {[%clk 0:00:09.5]}
41... Kf6 {[%clk 0:00:42.2]} 42. Rxb7 {[%clk 0:00:09.7]} 42... Rxg4 {[%clk
0:00:42]} 43. b6 {[%clk 0:00:07.5]} 43... Rg3 {[%clk 0:00:42.3]} 44. Rb8 {[%clk
0:00:08]} 44... Rb3 {[%clk 0:00:42.3]} 45. b7 {[%clk 0:00:08.5]} 45... Kg5
{[%clk 0:00:42]} 46. Kg2 {[%clk 0:00:08.7]} 46... Kg4 {[%clk 0:00:29.1]} 47. Rg8
{[%clk 0:00:08.3]} 47... Rb2+ {[%clk 0:00:29.7]} 48. Kg1 {[%clk 0:00:05.9]}
48... Rxb7 {[%clk 0:00:30.6]} 49. Rxg6+ {[%clk 0:00:05.8]} 49... Kf3 {[%clk
0:00:31.5]} 50. Rc6 {[%clk 0:00:03]} 50... Rb1+ {[%clk 0:00:31.4]} 51. Kh2
{[%clk 0:00:03.6]} 51... Re1 {[%clk 0:00:31.5]} 52. Rc3+ {[%clk 0:00:03.8]}
52... Re3 {[%clk 0:00:31.4]} 53. Rc1 {[%clk 0:00:04.3]} 53... Kf2 {[%clk
0:00:31.1]} 54. Rc4 {[%clk 0:00:03.6]} 54... f3 {[%clk 0:00:28]} 55. Rf4 {[%clk
0:00:04.2]} 55... Ke2 {[%clk 0:00:26.7]} 56. Kg1 {[%clk 0:00:03.5]} 56... Re8
{[%clk 0:00:24.5]} 57. Rf7 {[%clk 0:00:02.6]} 57... Rg8+ {[%clk 0:00:24.3]} 58.
Kh2 {[%clk 0:00:03.1]} 58... Kf2 {[%clk 0:00:23.4]} 59. Kh3 {[%clk 0:00:02.7]}
59... Ke2 {[%clk 0:00:21.4]} 60. Kh2 {[%clk 0:00:03]} 60... f2 {[%clk 0:00:21]}
61. Re7+ {[%clk 0:00:03.4]} 61... Kf1 {[%clk 0:00:21.3]} 62. Rf7 {[%clk
0:00:03.4]} 62... Rg5 {[%clk 0:00:20.9]} 63. Kh3 {[%clk 0:00:03.4]} 63... Kg1
{[%clk 0:00:20.9]} 64. Rf3 {[%clk 0:00:01.6]} 64... f1=Q+ {[%clk 0:00:20.5]} 65.
Rxf1+ {[%clk 0:00:02.5]} 65... Kxf1 {[%clk 0:00:21.1]} 66. Kh2 {[%clk
0:00:01.8]} 66... Rg8 {[%clk 0:00:22]} 67. Kh3 {[%clk 0:00:02.1]} 67... Kf2
{[%clk 0:00:22.3]} 0-1

[Event "*** Titled Tuesday Blitz"]
[Site "Chess.com"]
[Date "2021.02.02"]
[Round "1"]
[White "Onischuk_V"]
[Black "GameOverBro"]
[Result "1-0"]
[WhiteElo "2824"]
[BlackElo "2422"]
[TimeControl "180+1"]
[EndTime "10:08:26 PST"]
[Termination "Onischuk_V won on time"]

1. e4 {[%clk 0:03:00.9]} 1... d6 {[%clk 0:02:59.3]} 2. d4 {[%clk 0:03:00.2]}
2... Nf6 {[%clk 0:02:59.6]} 3. Nc3 {[%clk 0:03:00.3]} 3... e5 {[%clk 0:03:00.1]}
4. Nf3 {[%clk 0:02:59.8]} 4... Nbd7 {[%clk 0:03:00.1]} 5. g3 {[%clk 0:02:59.7]}
5... c6 {[%clk 0:02:59.3]} 6. Bg2 {[%clk 0:02:59.5]} 6... b5 {[%clk 0:02:59.5]}
7. O-O {[%clk 0:02:56.9]} 7... Bb7 {[%clk 0:02:57.6]} 8. Re1 {[%clk 0:02:55.2]}
8... Be7 {[%clk 0:02:56.6]} 9. a3 {[%clk 0:02:41]} 9... a5 {[%clk 0:02:55.9]}
10. h3 {[%clk 0:02:40.6]} 10... h5 {[%clk 0:02:55.1]} 11. Bg5 {[%clk 0:02:26.9]}
11... O-O {[%clk 0:02:54.5]} 12. dxe5 {[%clk 0:02:17]} 12... dxe5 {[%clk
0:02:54.2]} 13. Nh4 {[%clk 0:02:17]} 13... g6 {[%clk 0:02:49.1]} 14. Qd2 {[%clk
0:02:08.9]} 14... Nc5 {[%clk 0:02:43.1]} 15. Qe3 {[%clk 0:01:59.4]} 15... Ne6
{[%clk 0:02:41.7]} 16. Rad1 {[%clk 0:01:57.9]} 16... Qc7 {[%clk 0:02:34.5]} 17.
Bh6 {[%clk 0:01:57.5]} 17... Bc5 {[%clk 0:02:29.2]} 18. Qc1 {[%clk 0:01:55.6]}
18... Rfd8 {[%clk 0:02:28.6]} 19. Nf3 {[%clk 0:01:52.2]} 19... b4 {[%clk
0:02:24.4]} 20. Na4 {[%clk 0:01:50.1]} 20... Ba7 {[%clk 0:02:22]} 21. axb4
{[%clk 0:01:49.6]} 21... axb4 {[%clk 0:02:21.6]} 22. b3 {[%clk 0:01:49.4]} 22...
c5 {[%clk 0:02:15.7]} 23. Nd2 {[%clk 0:01:44.6]} 23... Bc6 {[%clk 0:01:54.8]}
24. Nb2 {[%clk 0:01:43.8]} 24... Nd4 {[%clk 0:01:51.2]} 25. Bg5 {[%clk
0:01:33.9]} 25... Qe7 {[%clk 0:01:41.1]} 26. Ndc4 {[%clk 0:01:31.7]} 26... Qe6
{[%clk 0:01:39.9]} 27. Nd3 {[%clk 0:01:29.2]} 27... Nd7 {[%clk 0:00:59.2]} 28.
Bxd8 {[%clk 0:01:16.1]} 28... Rxd8 {[%clk 0:01:00.1]} 29. f4 {[%clk 0:01:15.4]}
29... exf4 {[%clk 0:00:55.4]} 30. Nxf4 {[%clk 0:01:14.1]} 30... Qf6 {[%clk
0:00:46.6]} 31. e5 {[%clk 0:01:13.8]} 31... Nxe5 {[%clk 0:00:43.2]} 32. Nxe5
{[%clk 0:01:04.6]} 32... Bxg2 {[%clk 0:00:42.3]} 33. Kxg2 {[%clk 0:01:04.2]}
33... Bb8 {[%clk 0:00:41.8]} 34. Qe3 {[%clk 0:00:54.2]} 34... Re8 {[%clk
0:00:38.4]} 35. Nfd3 {[%clk 0:00:44.6]} 35... Nxc2 {[%clk 0:00:34.8]} 36. Qxc5
{[%clk 0:00:44.3]} 36... Nxe1+ {[%clk 0:00:30.8]} 37. Rxe1 {[%clk 0:00:44.4]}
37... Bd6 {[%clk 0:00:27.6]} 38. Qd5 {[%clk 0:00:43.3]} 38... Rd8 {[%clk
0:00:25.4]} 39. Nc6 {[%clk 0:00:36.7]} 39... Rd7 {[%clk 0:00:23]} 40. Nde5
{[%clk 0:00:32.5]} 40... Rc7 {[%clk 0:00:16.6]} 41. Rf1 {[%clk 0:00:31]} 41...
Qe6 {[%clk 0:00:12.5]} 42. Qxe6 {[%clk 0:00:27.7]} 42... fxe6 {[%clk 0:00:13.4]}
43. Rd1 {[%clk 0:00:23.6]} 43... Bxe5 {[%clk 0:00:09.3]} 44. Nxe5 {[%clk
0:00:23.7]} 44... Rc2+ {[%clk 0:00:10]} 45. Kf3 {[%clk 0:00:23.3]} 45... Rb2
{[%clk 0:00:09.5]} 46. Rd3 {[%clk 0:00:23.1]} 46... Kg7 {[%clk 0:00:09.8]} 47.
Nc6 {[%clk 0:00:22.9]} 47... Kf6 {[%clk 0:00:08.1]} 48. Nxb4 {[%clk 0:00:22.8]}
48... e5 {[%clk 0:00:09]} 49. Nd5+ {[%clk 0:00:22.7]} 49... Kf5 {[%clk
0:00:08.8]} 50. Ne3+ {[%clk 0:00:22.8]} 50... Ke6 {[%clk 0:00:09.3]} 51. Rd6+
{[%clk 0:00:19.5]} 51... Kf7 {[%clk 0:00:07.3]} 52. Rb6 {[%clk 0:00:19.5]} 52...
g5 {[%clk 0:00:07.2]} 53. Ke4 {[%clk 0:00:13.6]} 53... h4 {[%clk 0:00:05.5]} 54.
gxh4 {[%clk 0:00:13.3]} 54... gxh4 {[%clk 0:00:06.4]} 55. Nf5 {[%clk 0:00:13.4]}
55... Rh2 {[%clk 0:00:01.8]} 56. Nxh4 {[%clk 0:00:13.3]} 56... Rxh3 {[%clk
0:00:02.1]} 57. Nf3 {[%clk 0:00:13.9]} 57... Rh5 {[%clk 0:00:01.7]} 58. b4
{[%clk 0:00:12.7]} 58... Ke8 {[%clk 0:00:02.6]} 59. Rd6 {[%clk 0:00:11.6]} 59...
Rh3 {[%clk 0:00:01.8]} 60. b5 {[%clk 0:00:11.1]} 60... Rh1 {[%clk 0:00:01.8]}
61. b6 {[%clk 0:00:09.9]} 61... Rb1 {[%clk 0:00:01.8]} 62. Kd5 {[%clk
0:00:08.3]} 62... Rb5+ {[%clk 0:00:01.4]} 63. Kc6 {[%clk 0:00:07.9]} 1-0